Workbook

Sheet Sheet1
B3: Current SSA Benefit
B4: 80 years old
A6: AGI including 1/2 of SS Pmts exceeds 25,000 (32,000 for married couple)
B7: Dad | C7: 50% taxable | E7: 85% taxable | H7: Mom | I7: 50% taxable | K7: 85% taxable | O7: Combined | P7: 50% taxable | R7: 85% taxable
A8: Monthly | B8: 1000 | C8: =C9/12 -> 2083.333333 | D8: =C8-(0.5*B8) -> 1583.333333 | E8: =E9/12 -> 2833.333333 | F8: =E8-(0.5*B8) -> 2333.333333 | H8: 750 | I8: =I9/12 -> 2083.333333 | J8: =I8-(0.5*H8) -> 1708.333333 | K8: =K9/12 -> 2833.333333 | L8: =K8-(0.5*H8) -> 2458.333333 | O8: =SUM(B8,H8) -> 1750 | P8: =P9/12 -> 2666.666667 | Q8: =P8-(0.5*O8) -> 1791.666667 | R8: =R9/12 -> 3666.666667 | S8: =R8-(0.5*O8) -> 2791.666667
A9: Annual | B9: =B8*12 -> 12000 | C9: 25000 | D9: =C9-(0.5*B9) -> 19000 | E9: 34000 | F9: =E9-(0.5*B9) -> 28000 | H9: =H8*12 -> 9000 | I9: 25000 | J9: =I9-(0.5*H9) -> 20500 | K9: 34000 | L9: =K9-(0.5*H9) -> 29500 | O9: =SUM(B9,H9) -> 21000 | P9: 32000 | Q9: =P9-(0.5*O9) -> 21500 | R9: 44000 | S9: =R9-(0.5*O9) -> 33500
C11: =TEXT((0.5*B9),"$#,000")&" per year is taxable" -> $6,000 per year is taxable | E11: =TEXT((0.85*B9),"$#,000")&" per year is taxable" -> $10,200 per year is taxable | I11: =TEXT((0.5*H9),"$#,000")&" per year is taxable" -> $4,500 per year is taxable | K11: =TEXT((0.85*H9),"$#,000")&" per year is taxable" -> $7,650 per year is taxable | P11: =TEXT((0.5*O9),"$#,000")&" per year is taxable" -> $10,500 per year is taxable | R11: =TEXT((0.85*O9),"$#,000")&" per year is taxable" -> $17,850 per year is taxable
B15: To avoid additional taxes, Dad can earn an additional $1,500 per month | H15: To avoid additional taxes, Mom can earn an additional $1,700 per month | O15: To avoid additional taxes, together they can earn an additional $1,700 per month
B16: $6,000 of SSA benefits are taxable if he earns more than $1,500 per month | H16: $4,500 of SSA benefits are taxable if she earns more than $1,700 per month | O16: $4,500 of SSA benefits are taxable if she earns more than $1,700 per month
B17: $10,200 of SSA benefits are taxable if he earns more than $2,8oo per month. | C17: ` | H17: $7,650 of SSA benefits are taxable if she earns more than $2,800 per month. | I17: ` | O17: $7,650 of SSA benefits are taxable if she earns more than $2,800 per month. | P17: `
C23: Current SSA | D23: Additional | E23: Tax implications | H23: Taxable % of SSA
A24: =D24/4.33 -> 300.2309469 | C24: 1000 | D24: 1300 | E24: =IF(D24+(0.5*C24)>2833,TEXT(0.85*C24,"$#,000")&" is taxable",IF(D24+(0.5*C24)>2083,TEXT(0.5*C24,"$#,000")&" is taxable","None Taxable")) -> None Taxable
A25: =D25/4.33 -> 113.1639723 | C25: 750 | D25: 490 | E25: =IF(D25+(0.5*C25)>2833,TEXT(0.85*C25,"$#,000")&" is taxable",IF(D25+(0.5*C25)>2083,TEXT(0.5*C25,"$#,000")&" is taxable","None Taxable")) -> None Taxable
C26: =SUM(C24:C25) -> 1750 | D26: =SUM(D24:D25) -> 1790 | E26: =IF(D26+(0.5*C26)>3667,TEXT(0.85*C26,"$#,000")&" is taxable",IF(D26+(0.5*C26)>2667,TEXT(0.5*C26,"$#,000")&" is taxable","None Taxable")) -> None Taxable
J32: 1792

Sheet Sheet2
A1: Housing Allowances | U1: =SUM(U3:U16) -> 3012
B2: 1 | C2: 2 | D2: 3 | E2: 4 | F2: 5
A3: County: | B3: Family of 1 | C3: Family of 2 | D3: Family of 3 | E3: Family of 4 | F3: Family of 5 | S3: Family Size | T3: 2 | U3: =INDIRECT(ADDRESS(MATCH(T4,Table2[County:],0)+3,MATCH(T3,B2:F2,0)+1)) -> 1686 | W3: =MATCH(T4,Table2[County:],0) -> 2
A4: Anderson | B4: =_xlfn.XLOOKUP(($A4&" County"),TNHousing[County],TNHousing[[ Family of 1]],"not found") -> 1337 | C4: =_xlfn.XLOOKUP(($A4&" County"),TNHousing[County],TNHousing[[ Family of 2]],"not found") -> 1571 | D4: =_xlfn.XLOOKUP(($A4&" County"),TNHousing[County],TNHousing[[ Family of 3]],"not found") -> 1655 | E4: =_xlfn.XLOOKUP(($A4&" County"),TNHousing[County],TNHousing[[ Family of 4]],"not found") -> 1845 | F4: =_xlfn.XLOOKUP(($A4&" County"),TNHousing[County],TNHousing[[ Family of 5]],"not found") -> 1875 | H4: National Standards: Food, Clothing and Other Items | S4: County | T4: Blount | W4: =MATCH(T3,B2:F2,0) -> 2
A5: Blount | B5: =_xlfn.XLOOKUP(($A5&" County"),TNHousing[County],TNHousing[[ Family of 1]],"not found") -> 1436 | C5: =_xlfn.XLOOKUP(($A5&" County"),TNHousing[County],TNHousing[[ Family of 2]],"not found") -> 1686 | D5: =_xlfn.XLOOKUP(($A5&" County"),TNHousing[County],TNHousing[[ Family of 3]],"not found") -> 1777 | E5: =_xlfn.XLOOKUP(($A5&" County"),TNHousing[County],TNHousing[[ Family of 4]],"not found") -> 1981 | F5: =_xlfn.XLOOKUP(($A5&" County"),TNHousing[County],TNHousing[[ Family of 5]],"not found") -> 2013 | H5: Expense | I5: 1 Person | J5: 2 Persons | K5: 3 Persons | L5: 4 Persons | S5: Cars | T5: 2 | U5: =IF(T5=1,I19,IF(T5=2,K19,"")) -> 1176
A6: Bradley | B6: =_xlfn.XLOOKUP(($A6&" County"),TNHousing[County],TNHousing[[ Family of 1]],"not found") -> 1363 | C6: =_xlfn.XLOOKUP(($A6&" County"),TNHousing[County],TNHousing[[ Family of 2]],"not found") -> 1601 | D6: =_xlfn.XLOOKUP(($A6&" County"),TNHousing[County],TNHousing[[ Family of 3]],"not found") -> 1687 | E6: =_xlfn.XLOOKUP(($A6&" County"),TNHousing[County],TNHousing[[ Family of 4]],"not found") -> 1881 | F6: =_xlfn.XLOOKUP(($A6&" County"),TNHousing[County],TNHousing[[ Family of 5]],"not found") -> 1911 | H6: Food | I6: 431 | J6: 779 | K6: 903 | L6: 1028 | S6: Age 1 | T6: 40 | U6: =IF(T6<65,I26,I27) -> 75
A7: Cumberland | B7: =_xlfn.XLOOKUP(($A7&" County"),TNHousing[County],TNHousing[[ Family of 1]],"not found") -> 1189 | C7: =_xlfn.XLOOKUP(($A7&" County"),TNHousing[County],TNHousing[[ Family of 2]],"not found") -> 1396 | D7: =_xlfn.XLOOKUP(($A7&" County"),TNHousing[County],TNHousing[[ Family of 3]],"not found") -> 1471 | E7: =_xlfn.XLOOKUP(($A7&" County"),TNHousing[County],TNHousing[[ Family of 4]],"not found") -> 1640 | F7: =_xlfn.XLOOKUP(($A7&" County"),TNHousing[County],TNHousing[[ Family of 5]],"not found") -> 1667 | H7: Housekeeping | I7: 40 | J7: 82 | K7: 74 | L7: 85 | S7: Age 2 | T7: 40 | U7: =IF(T7<65,I26,I27) -> 75
A8: Davidson | B8: =_xlfn.XLOOKUP(($A8&" County"),TNHousing[County],TNHousing[[ Family of 1]],"not found") -> 1603 | C8: =_xlfn.XLOOKUP(($A8&" County"),TNHousing[County],TNHousing[[ Family of 2]],"not found") -> 1883 | D8: =_xlfn.XLOOKUP(($A8&" County"),TNHousing[County],TNHousing[[ Family of 3]],"not found") -> 1984 | E8: =_xlfn.XLOOKUP(($A8&" County"),TNHousing[County],TNHousing[[ Family of 4]],"not found") -> 2212 | F8: =_xlfn.XLOOKUP(($A8&" County"),TNHousing[County],TNHousing[[ Family of 5]],"not found") -> 2248 | H8: Apparel & Svc | I8: 99 | J8: 161 | K8: 206 | L8: 279
A9: DeKalb | B9: =_xlfn.XLOOKUP(($A9&" County"),TNHousing[County],TNHousing[[ Family of 1]],"not found") -> 1211 | C9: =_xlfn.XLOOKUP(($A9&" County"),TNHousing[County],TNHousing[[ Family of 2]],"not found") -> 1423 | D9: =_xlfn.XLOOKUP(($A9&" County"),TNHousing[County],TNHousing[[ Family of 3]],"not found") -> 1499 | E9: =_xlfn.XLOOKUP(($A9&" County"),TNHousing[County],TNHousing[[ Family of 4]],"not found") -> 1671 | F9: =_xlfn.XLOOKUP(($A9&" County"),TNHousing[County],TNHousing[[ Family of 5]],"not found") -> 1698 | H9: Personal care | I9: 45 | J9: 82 | K9: 78 | L9: 96
A10: Franklin | B10: =_xlfn.XLOOKUP(($A10&" County"),TNHousing[County],TNHousing[[ Family of 1]],"not found") -> 1295 | C10: =_xlfn.XLOOKUP(($A10&" County"),TNHousing[County],TNHousing[[ Family of 2]],"not found") -> 1521 | D10: =_xlfn.XLOOKUP(($A10&" County"),TNHousing[County],TNHousing[[ Family of 3]],"not found") -> 1603 | E10: =_xlfn.XLOOKUP(($A10&" County"),TNHousing[County],TNHousing[[ Family of 4]],"not found") -> 1787 | F10: =_xlfn.XLOOKUP(($A10&" County"),TNHousing[County],TNHousing[[ Family of 5]],"not found") -> 1816 | H10: Miscellaneous | I10: 170 | J10: 306 | K10: 349 | L10: 412
A11: Grundy | B11: =_xlfn.XLOOKUP(($A11&" County"),TNHousing[County],TNHousing[[ Family of 1]],"not found") -> 1175 | C11: =_xlfn.XLOOKUP(($A11&" County"),TNHousing[County],TNHousing[[ Family of 2]],"not found") -> 1380 | D11: =_xlfn.XLOOKUP(($A11&" County"),TNHousing[County],TNHousing[[ Family of 3]],"not found") -> 1454 | E11: =_xlfn.XLOOKUP(($A11&" County"),TNHousing[County],TNHousing[[ Family of 4]],"not found") -> 1621 | F11: =_xlfn.XLOOKUP(($A11&" County"),TNHousing[County],TNHousing[[ Family of 5]],"not found") -> 1647 | H11: Total | I11: 785 | J11: 1410 | K11: 1610 | L11: 1900
A12: Hamilton | B12: =_xlfn.XLOOKUP(($A12&" County"),TNHousing[County],TNHousing[[ Family of 1]],"not found") -> 1475 | C12: =_xlfn.XLOOKUP(($A12&" County"),TNHousing[County],TNHousing[[ Family of 2]],"not found") -> 1732 | D12: =_xlfn.XLOOKUP(($A12&" County"),TNHousing[County],TNHousing[[ Family of 3]],"not found") -> 1825 | E12: =_xlfn.XLOOKUP(($A12&" County"),TNHousing[County],TNHousing[[ Family of 4]],"not found") -> 2035 | F12: =_xlfn.XLOOKUP(($A12&" County"),TNHousing[County],TNHousing[[ Family of 5]],"not found") -> 2068 | H12: Each additional person, adds to four-person: | L12: 344
A13: Knox | B13: =_xlfn.XLOOKUP(($A13&" County"),TNHousing[County],TNHousing[[ Family of 1]],"not found") -> 1471 | C13: =_xlfn.XLOOKUP(($A13&" County"),TNHousing[County],TNHousing[[ Family of 2]],"not found") -> 1728 | D13: =_xlfn.XLOOKUP(($A13&" County"),TNHousing[County],TNHousing[[ Family of 3]],"not found") -> 1821 | E13: =_xlfn.XLOOKUP(($A13&" County"),TNHousing[County],TNHousing[[ Family of 4]],"not found") -> 2030 | F13: =_xlfn.XLOOKUP(($A13&" County"),TNHousing[County],TNHousing[[ Family of 5]],"not found") -> 2063
A14: Loudon | B14: =_xlfn.XLOOKUP(($A14&" County"),TNHousing[County],TNHousing[[ Family of 1]],"not found") -> 1376 | C14: =_xlfn.XLOOKUP(($A14&" County"),TNHousing[County],TNHousing[[ Family of 2]],"not found") -> 1616 | D14: =_xlfn.XLOOKUP(($A14&" County"),TNHousing[County],TNHousing[[ Family of 3]],"not found") -> 1703 | E14: =_xlfn.XLOOKUP(($A14&" County"),TNHousing[County],TNHousing[[ Family of 4]],"not found") -> 1899 | F14: =_xlfn.XLOOKUP(($A14&" County"),TNHousing[County],TNHousing[[ Family of 5]],"not found") -> 1929
A15: McMinn | B15: =_xlfn.XLOOKUP(($A15&" County"),TNHousing[County],TNHousing[[ Family of 1]],"not found") -> 1241 | C15: =_xlfn.XLOOKUP(($A15&" County"),TNHousing[County],TNHousing[[ Family of 2]],"not found") -> 1458 | D15: =_xlfn.XLOOKUP(($A15&" County"),TNHousing[County],TNHousing[[ Family of 3]],"not found") -> 1536 | E15: =_xlfn.XLOOKUP(($A15&" County"),TNHousing[County],TNHousing[[ Family of 4]],"not found") -> 1713 | F15: =_xlfn.XLOOKUP(($A15&" County"),TNHousing[County],TNHousing[[ Family of 5]],"not found") -> 1740
A16: Madison | B16: =_xlfn.XLOOKUP(($A16&" County"),TNHousing[County],TNHousing[[ Family of 1]],"not found") -> 1366 | C16: =_xlfn.XLOOKUP(($A16&" County"),TNHousing[County],TNHousing[[ Family of 2]],"not found") -> 1604 | D16: =_xlfn.XLOOKUP(($A16&" County"),TNHousing[County],TNHousing[[ Family of 3]],"not found") -> 1690 | E16: =_xlfn.XLOOKUP(($A16&" County"),TNHousing[County],TNHousing[[ Family of 4]],"not found") -> 1884 | F16: =_xlfn.XLOOKUP(($A16&" County"),TNHousing[County],TNHousing[[ Family of 5]],"not found") -> 1915 | H16: Public Transportation | J16: National | K16: 242
A17: Marion | B17: =_xlfn.XLOOKUP(($A17&" County"),TNHousing[County],TNHousing[[ Family of 1]],"not found") -> 1281 | C17: =_xlfn.XLOOKUP(($A17&" County"),TNHousing[County],TNHousing[[ Family of 2]],"not found") -> 1504 | D17: =_xlfn.XLOOKUP(($A17&" County"),TNHousing[County],TNHousing[[ Family of 3]],"not found") -> 1585 | E17: =_xlfn.XLOOKUP(($A17&" County"),TNHousing[County],TNHousing[[ Family of 4]],"not found") -> 1767 | F17: =_xlfn.XLOOKUP(($A17&" County"),TNHousing[County],TNHousing[[ Family of 5]],"not found") -> 1796 | H17: Ownership
A18: Meigs | B18: =_xlfn.XLOOKUP(($A18&" County"),TNHousing[County],TNHousing[[ Family of 1]],"not found") -> 1247 | C18: =_xlfn.XLOOKUP(($A18&" County"),TNHousing[County],TNHousing[[ Family of 2]],"not found") -> 1464 | D18: =_xlfn.XLOOKUP(($A18&" County"),TNHousing[County],TNHousing[[ Family of 3]],"not found") -> 1543 | E18: =_xlfn.XLOOKUP(($A18&" County"),TNHousing[County],TNHousing[[ Family of 4]],"not found") -> 1720 | F18: =_xlfn.XLOOKUP(($A18&" County"),TNHousing[County],TNHousing[[ Family of 5]],"not found") -> 1748 | I18: 1 Car | K18: 2 Cars
A19: Monroe | B19: =_xlfn.XLOOKUP(($A19&" County"),TNHousing[County],TNHousing[[ Family of 1]],"not found") -> 1245 | C19: =_xlfn.XLOOKUP(($A19&" County"),TNHousing[County],TNHousing[[ Family of 2]],"not found") -> 1462 | D19: =_xlfn.XLOOKUP(($A19&" County"),TNHousing[County],TNHousing[[ Family of 3]],"not found") -> 1541 | E19: =_xlfn.XLOOKUP(($A19&" County"),TNHousing[County],TNHousing[[ Family of 4]],"not found") -> 1718 | F19: =_xlfn.XLOOKUP(($A19&" County"),TNHousing[County],TNHousing[[ Family of 5]],"not found") -> 1746 | H19: National | I19: 588 | K19: 1176
A20: Polk | B20: =_xlfn.XLOOKUP(($A20&" County"),TNHousing[County],TNHousing[[ Family of 1]],"not found") -> 1200 | C20: =_xlfn.XLOOKUP(($A20&" County"),TNHousing[County],TNHousing[[ Family of 2]],"not found") -> 1409 | D20: =_xlfn.XLOOKUP(($A20&" County"),TNHousing[County],TNHousing[[ Family of 3]],"not found") -> 1485 | E20: =_xlfn.XLOOKUP(($A20&" County"),TNHousing[County],TNHousing[[ Family of 4]],"not found") -> 1656 | F20: =_xlfn.XLOOKUP(($A20&" County"),TNHousing[County],TNHousing[[ Family of 5]],"not found") -> 1683 | H20: Operating
A21: Rhea | B21: =_xlfn.XLOOKUP(($A21&" County"),TNHousing[County],TNHousing[[ Family of 1]],"not found") -> 1292 | C21: =_xlfn.XLOOKUP(($A21&" County"),TNHousing[County],TNHousing[[ Family of 2]],"not found") -> 1517 | D21: =_xlfn.XLOOKUP(($A21&" County"),TNHousing[County],TNHousing[[ Family of 3]],"not found") -> 1599 | E21: =_xlfn.XLOOKUP(($A21&" County"),TNHousing[County],TNHousing[[ Family of 4]],"not found") -> 1783 | F21: =_xlfn.XLOOKUP(($A21&" County"),TNHousing[County],TNHousing[[ Family of 5]],"not found") -> 1812 | H21: South Region | I21: 267 | K21: 534
A22: Roane | B22: =_xlfn.XLOOKUP(($A22&" County"),TNHousing[County],TNHousing[[ Family of 1]],"not found") -> 1364 | C22: =_xlfn.XLOOKUP(($A22&" County"),TNHousing[County],TNHousing[[ Family of 2]],"not found") -> 1602 | D22: =_xlfn.XLOOKUP(($A22&" County"),TNHousing[County],TNHousing[[ Family of 3]],"not found") -> 1688 | E22: =_xlfn.XLOOKUP(($A22&" County"),TNHousing[County],TNHousing[[ Family of 4]],"not found") -> 1882 | F22: =_xlfn.XLOOKUP(($A22&" County"),TNHousing[County],TNHousing[[ Family of 5]],"not found") -> 1913
A23: Rutherford | B23: =_xlfn.XLOOKUP(($A23&" County"),TNHousing[County],TNHousing[[ Family of 1]],"not found") -> 1542 | C23: =_xlfn.XLOOKUP(($A23&" County"),TNHousing[County],TNHousing[[ Family of 2]],"not found") -> 1812 | D23: =_xlfn.XLOOKUP(($A23&" County"),TNHousing[County],TNHousing[[ Family of 3]],"not found") -> 1909 | E23: =_xlfn.XLOOKUP(($A23&" County"),TNHousing[County],TNHousing[[ Family of 4]],"not found") -> 2129 | F23: =_xlfn.XLOOKUP(($A23&" County"),TNHousing[County],TNHousing[[ Family of 5]],"not found") -> 2163
A24: Sequatchie | B24: =_xlfn.XLOOKUP(($A24&" County"),TNHousing[County],TNHousing[[ Family of 1]],"not found") -> 1286 | C24: =_xlfn.XLOOKUP(($A24&" County"),TNHousing[County],TNHousing[[ Family of 2]],"not found") -> 1510 | D24: =_xlfn.XLOOKUP(($A24&" County"),TNHousing[County],TNHousing[[ Family of 3]],"not found") -> 1591 | E24: =_xlfn.XLOOKUP(($A24&" County"),TNHousing[County],TNHousing[[ Family of 4]],"not found") -> 1774 | F24: =_xlfn.XLOOKUP(($A24&" County"),TNHousing[County],TNHousing[[ Family of 5]],"not found") -> 1803
A25: Sevier | B25: =_xlfn.XLOOKUP(($A25&" County"),TNHousing[County],TNHousing[[ Family of 1]],"not found") -> 1346 | C25: =_xlfn.XLOOKUP(($A25&" County"),TNHousing[County],TNHousing[[ Family of 2]],"not found") -> 1581 | D25: =_xlfn.XLOOKUP(($A25&" County"),TNHousing[County],TNHousing[[ Family of 3]],"not found") -> 1666 | E25: =_xlfn.XLOOKUP(($A25&" County"),TNHousing[County],TNHousing[[ Family of 4]],"not found") -> 1858 | F25: =_xlfn.XLOOKUP(($A25&" County"),TNHousing[County],TNHousing[[ Family of 5]],"not found") -> 1888 | H25: Age | I25: Out of Pocket
A26: Shelby | B26: =_xlfn.XLOOKUP(($A26&" County"),TNHousing[County],TNHousing[[ Family of 1]],"not found") -> 1557 | C26: =_xlfn.XLOOKUP(($A26&" County"),TNHousing[County],TNHousing[[ Family of 2]],"not found") -> 1829 | D26: =_xlfn.XLOOKUP(($A26&" County"),TNHousing[County],TNHousing[[ Family of 3]],"not found") -> 1927 | E26: =_xlfn.XLOOKUP(($A26&" County"),TNHousing[County],TNHousing[[ Family of 4]],"not found") -> 2149 | F26: =_xlfn.XLOOKUP(($A26&" County"),TNHousing[County],TNHousing[[ Family of 5]],"not found") -> 2183 | H26: Under 65 | I26: 75
A27: Union | B27: =_xlfn.XLOOKUP(($A27&" County"),TNHousing[County],TNHousing[[ Family of 1]],"not found") -> 1252 | C27: =_xlfn.XLOOKUP(($A27&" County"),TNHousing[County],TNHousing[[ Family of 2]],"not found") -> 1470 | D27: =_xlfn.XLOOKUP(($A27&" County"),TNHousing[County],TNHousing[[ Family of 3]],"not found") -> 1549 | E27: =_xlfn.XLOOKUP(($A27&" County"),TNHousing[County],TNHousing[[ Family of 4]],"not found") -> 1727 | F27: =_xlfn.XLOOKUP(($A27&" County"),TNHousing[County],TNHousing[[ Family of 5]],"not found") -> 1755 | H27: 65 and Older | I27: 153

Sheet TN Housing
A1: County | B1: Family of 1 | C1: Family of 2 | D1: Family of 3 | E1: Family of 4 | F1: Family of 5
A2: Anderson County | B2: 1337 | C2: 1571 | D2: 1655 | E2: 1845 | F2: 1875
A3: Bedford County | B3: 1295 | C3: 1521 | D3: 1603 | E3: 1787 | F3: 1816
A4: Benton County | B4: 1125 | C4: 1321 | D4: 1392 | E4: 1552 | F4: 1577
A5: Bledsoe County | B5: 1186 | C5: 1393 | D5: 1468 | E5: 1637 | F5: 1663
A6: Blount County | B6: 1436 | C6: 1686 | D6: 1777 | E6: 1981 | F6: 2013
A7: Bradley County | B7: 1363 | C7: 1601 | D7: 1687 | E7: 1881 | F7: 1911
A8: Campbell County | B8: 1179 | C8: 1385 | D8: 1459 | E8: 1627 | F8: 1653
A9: Cannon County | B9: 1308 | C9: 1536 | D9: 1619 | E9: 1805 | F9: 1834
A10: Carroll County | B10: 1127 | C10: 1324 | D10: 1395 | E10: 1555 | F10: 1581
A11: Carter County | B11: 1154 | C11: 1355 | D11: 1428 | E11: 1592 | F11: 1618
A12: Cheatham County | B12: 1490 | C12: 1750 | D12: 1844 | E12: 2056 | F12: 2089
A13: Chester County | B13: 1249 | C13: 1467 | D13: 1546 | E13: 1724 | F13: 1752
A14: Claiborne County | B14: 1122 | C14: 1318 | D14: 1389 | E14: 1549 | F14: 1574
A15: Clay County | B15: 1155 | C15: 1357 | D15: 1430 | E15: 1594 | F15: 1620
A16: Cocke County | B16: 1148 | C16: 1349 | D16: 1421 | E16: 1584 | F16: 1610
A17: Coffee County | B17: 1314 | C17: 1543 | D17: 1626 | E17: 1813 | F17: 1842
A18: Crockett County | B18: 1193 | C18: 1402 | D18: 1477 | E18: 1647 | F18: 1673
A19: Cumberland County | B19: 1189 | C19: 1396 | D19: 1471 | E19: 1640 | F19: 1667
A20: Davidson County | B20: 1603 | C20: 1883 | D20: 1984 | E20: 2212 | F20: 2248
A21: Decatur County | B21: 1226 | C21: 1440 | D21: 1517 | E21: 1691 | F21: 1719
A22: DeKalb County | B22: 1211 | C22: 1423 | D22: 1499 | E22: 1671 | F22: 1698
A23: Dickson County | B23: 1375 | C23: 1615 | D23: 1702 | E23: 1898 | F23: 1928
A24: Dyer County | B24: 1231 | C24: 1446 | D24: 1524 | E24: 1699 | F24: 1727
A25: Fayette County | B25: 1564 | C25: 1837 | D25: 1936 | E25: 2159 | F25: 2193
A26: Fentress County | B26: 1096 | C26: 1288 | D26: 1357 | E26: 1513 | F26: 1537
A27: Franklin County | B27: 1295 | C27: 1521 | D27: 1603 | E27: 1787 | F27: 1816
A28: Gibson County | B28: 1274 | C28: 1497 | D28: 1577 | E28: 1758 | F28: 1787
A29: Giles County | B29: 1289 | C29: 1514 | D29: 1595 | E29: 1778 | F29: 1807
A30: Grainger County | B30: 1206 | C30: 1416 | D30: 1492 | E30: 1664 | F30: 1690
A31: Greene County | B31: 1185 | C31: 1391 | D31: 1466 | E31: 1635 | F31: 1661
A32: Grundy County | B32: 1175 | C32: 1380 | D32: 1454 | E32: 1621 | F32: 1647
A33: Hamblen County | B33: 1210 | C33: 1422 | D33: 1498 | E33: 1670 | F33: 1697
A34: Hamilton County | B34: 1475 | C34: 1732 | D34: 1825 | E34: 2035 | F34: 2068
A35: Hancock County | B35: 1084 | C35: 1273 | D35: 1341 | E35: 1495 | F35: 1519
A36: Hardeman County | B36: 1206 | C36: 1416 | D36: 1492 | E36: 1664 | F36: 1690
A37: Hardin County | B37: 1128 | C37: 1325 | D37: 1396 | E37: 1557 | F37: 1582
A38: Hawkins County | B38: 1218 | C38: 1431 | D38: 1508 | E38: 1681 | F38: 1709
A39: Haywood County | B39: 1207 | C39: 1418 | D39: 1494 | E39: 1666 | F39: 1693
A40: Henderson County | B40: 1180 | C40: 1386 | D40: 1460 | E40: 1628 | F40: 1654
A41: Henry County | B41: 1149 | C41: 1349 | D41: 1422 | E41: 1586 | F41: 1611
A42: Hickman County | B42: 1249 | C42: 1467 | D42: 1546 | E42: 1724 | F42: 1752
A43: Houston County | B43: 1286 | C43: 1510 | D43: 1591 | E43: 1774 | F43: 1803
A44: Humphreys County | B44: 1204 | C44: 1414 | D44: 1490 | E44: 1661 | F44: 1688
A45: Jackson County | B45: 1139 | C45: 1338 | D45: 1410 | E45: 1572 | F45: 1598
A46: Jefferson County | B46: 1290 | C46: 1516 | D46: 1597 | E46: 1781 | F46: 1809
A47: Johnson County | B47: 1141 | C47: 1340 | D47: 1412 | E47: 1574 | F47: 1600
A48: Knox County | B48: 1471 | C48: 1728 | D48: 1821 | E48: 2030 | F48: 2063
A49: Lake County | B49: 1093 | C49: 1284 | D49: 1353 | E49: 1509 | F49: 1533
A50: Lauderdale County | B50: 1175 | C50: 1380 | D50: 1454 | E50: 1621 | F50: 1647
A51: Lawrence County | B51: 1216 | C51: 1428 | D51: 1505 | E51: 1678 | F51: 1705
A52: Lewis County | B52: 1212 | C52: 1424 | D52: 1500 | E52: 1673 | F52: 1700
A53: Lincoln County | B53: 1333 | C53: 1566 | D53: 1650 | E53: 1840 | F53: 1869
A54: Loudon County | B54: 1376 | C54: 1616 | D54: 1703 | E54: 1899 | F54: 1929
A55: McMinn County | B55: 1241 | C55: 1458 | D55: 1536 | E55: 1713 | F55: 1740
A56: McNairy County | B56: 1188 | C56: 1395 | D56: 1470 | E56: 1639 | F56: 1666
A57: Macon County | B57: 1175 | C57: 1380 | D57: 1454 | E57: 1621 | F57: 1647
A58: Madison County | B58: 1366 | C58: 1604 | D58: 1690 | E58: 1884 | F58: 1915
A59: Marion County | B59: 1281 | C59: 1504 | D59: 1585 | E59: 1767 | F59: 1796
A60: Marshall County | B60: 1332 | C60: 1564 | D60: 1648 | E60: 1838 | F60: 1867
A61: Maury County | B61: 1441 | C61: 1693 | D61: 1784 | E61: 1989 | F61: 2021
A62: Meigs County | B62: 1247 | C62: 1464 | D62: 1543 | E62: 1720 | F62: 1748
A63: Monroe County | B63: 1245 | C63: 1462 | D63: 1541 | E63: 1718 | F63: 1746
A64: Montgomery County | B64: 1425 | C64: 1673 | D64: 1763 | E64: 1966 | F64: 1997
A65: Moore County | B65: 1477 | C65: 1735 | D65: 1828 | E65: 2038 | F65: 2071
A66: Morgan County | B66: 1201 | C66: 1411 | D66: 1487 | E66: 1658 | F66: 1685
A67: Obion County | B67: 1152 | C67: 1353 | D67: 1426 | E67: 1590 | F67: 1616
A68: Overton County | B68: 1178 | C68: 1384 | D68: 1458 | E68: 1626 | F68: 1652
A69: Perry County | B69: 1113 | C69: 1308 | D69: 1378 | E69: 1536 | F69: 1561
A70: Pickett County | B70: 1039 | C70: 1220 | D70: 1286 | E70: 1434 | F70: 1457
A71: Polk County | B71: 1200 | C71: 1409 | D71: 1485 | E71: 1656 | F71: 1683
A72: Putnam County | B72: 1339 | C72: 1572 | D72: 1657 | E72: 1848 | F72: 1877
A73: Rhea County | B73: 1292 | C73: 1517 | D73: 1599 | E73: 1783 | F73: 1812
A74: Roane County | B74: 1364 | C74: 1602 | D74: 1688 | E74: 1882 | F74: 1913
A75: Robertson County | B75: 1508 | C75: 1771 | D75: 1866 | E75: 2081 | F75: 2114
A76: Rutherford County | B76: 1542 | C76: 1812 | D76: 1909 | E76: 2129 | F76: 2163
A77: Scott County | B77: 1139 | C77: 1338 | D77: 1410 | E77: 1572 | F77: 1598
A78: Sequatchie County | B78: 1286 | C78: 1510 | D78: 1591 | E78: 1774 | F78: 1803
A79: Sevier County | B79: 1346 | C79: 1581 | D79: 1666 | E79: 1858 | F79: 1888
A80: Shelby County | B80: 1557 | C80: 1829 | D80: 1927 | E80: 2149 | F80: 2183
A81: Smith County | B81: 1354 | C81: 1591 | D81: 1676 | E81: 1869 | F81: 1899
A82: Stewart County | B82: 1362 | C82: 1600 | D82: 1686 | E82: 1880 | F82: 1910
A83: Sullivan County | B83: 1244 | C83: 1461 | D83: 1540 | E83: 1717 | F83: 1745
A84: Sumner County | B84: 1636 | C84: 1922 | D84: 2025 | E84: 2258 | F84: 2294
A85: Tipton County | B85: 1451 | C85: 1704 | D85: 1796 | E85: 2003 | F85: 2035
A86: Trousdale County | B86: 1354 | C86: 1591 | D86: 1676 | E86: 1869 | F86: 1899
A87: Unicoi County | B87: 1180 | C87: 1386 | D87: 1460 | E87: 1628 | F87: 1654
A88: Union County | B88: 1252 | C88: 1470 | D88: 1549 | E88: 1727 | F88: 1755
A89: Van Buren County | B89: 1171 | C89: 1375 | D89: 1449 | E89: 1616 | F89: 1642
A90: Warren County | B90: 1132 | C90: 1330 | D90: 1401 | E90: 1562 | F90: 1587
A91: Washington County | B91: 1371 | C91: 1610 | D91: 1697 | E91: 1892 | F91: 1923
A92: Wayne County | B92: 1115 | C92: 1310 | D92: 1380 | E92: 1539 | F92: 1564
A93: Weakley County | B93: 1143 | C93: 1343 | D93: 1415 | E93: 1578 | F93: 1603
A94: White County | B94: 1149 | C94: 1349 | D94: 1422 | E94: 1586 | F94: 1611
A95: Williamson County | B95: 2271 | C95: 2668 | D95: 2811 | E95: 3134 | F95: 3185
A96: Wilson County | B96: 1748 | C96: 2053 | D96: 2163 | E96: 2412 | F96: 2451
